[Event "HSK IM Invitational 2022"]
[Site "Hamburg"]
[Date "2022.05.24"]
[Round "5.3"]
[White "Schulze, Lara"]
[Black "Hommer, Jeremy"]
[Result "0-1"]
[ECO "B62"]
[WhiteElo "2303"]
[BlackElo "2152"]
[Annotator "TA"]
[PlyCount "92"]
[EventDate "2022.05.20"]
[EventType "tourn"]
[EventCountry "GER"]
[SourceTitle "playchess.com"]
[Source "ChessBase"]
[SourceQuality "1"]
[TimeControl "40/5400+30:1800+30"]

{[%evp 13,92,30,28,9,14,0,23,20,21,0,25,19,51,0,27,0,20,14,29,0,0,0,0,-22,-22,-55,-33,-40,-48,-35,-34,-28,0,0,50,-36,-45,-46,-51,-61,-53,-178,-167,-212,-181,-216,-204,-200,-195,-190,-118,-70,0,-24,-16,-25,0,0,0,0,0,0,0,0,0,0,0,-362,-355,-350,-334,-345,-325,-299,-173,-29992,-29993,-29993,-29987,-29994,-29995]} 1. e4 {[%emt 0:00:04]} c5 {[%emt 0:00:02]} 2. Nf3 {[%emt 0:00:09]} Nc6 {[%emt 0:00:04]} 3. d4 {[%emt 0:00:05]} cxd4 {[%emt 0:00:04]} 4. Nxd4 {[%emt 0:00:04]} Nf6 {[%emt 0:00:08]} 5. Nc3 {[%emt 0:00:04]} d6 {[%emt 0:00:06]} 6. Bg5 {[%emt 0:00:13]} e6 {[%emt 0:00:12]} 7. Bb5 {[%emt 0:00:28]} Bd7 {[%emt 0:02:41]} 8. Qd3 {[%emt 0:00:21] outshines the older 8.Bxc6. B62: Sicilian: Richter-Rauzer: 6...e6: Unusual White 7th moves.} Be7 {[%emt 0:02:28]} 9. O-O-O {[%emt 0:00:35]} O-O {[%emt 0:04:02]} 10. Bxc6 {[%emt 0:00:30] White has an edge.} bxc6 {[%emt 0:00:09]} 11. Nb3 {[%emt 0:00:22][%cal Oe4e5]} Bc8 {[%emt 0:01:23]} (11... a5 $5 {[%cal Ra5a4]}) 12. Rhe1 {[%emt 0:01:23]} e5 {[%emt 0:11:47] [#]} 13. a3 $146 {[%emt 0:08:02]} ({Predecessor:} 13. f4 h6 14. fxe5 dxe5 15. Be3 Bg4 16. Qxd8 Rfxd8 17. Rxd8+ Bxd8 18. Nc5 Bh5 19. Nb7 {½-½ (57) Deakin,C (2101)-Simplina,P ICCF email 2020}) 13... Be6 {[%emt 0:10:33]} 14. f4 {[%emt 0:07:40]} (14. Bxf6 $5 gxf6 15. Nc5 $1 $11) 14... Rb8 {[%emt 0:10:03]} 15. fxe5 {[%emt 0:22:47]} dxe5 {[%emt 0:01:43]} 16. Qg3 {[%emt 0:04:01]} Qc7 {[%emt 0:15:33]} 17. Bxf6 {[%emt 0:12:28]} Bxf6 {[%emt 0:00:13]} 18. Nc5 {[%emt 0:00:22]} Qe7 {[%emt 0:03:46]} 19. Qf2 {[%emt 0:07:35]} Bh4 {[%emt 0:05:16]} 20. g3 {[%emt 0:00:34]} Bg5+ {[%emt 0:00:09]} 21. Kb1 {[%emt 0:00:14]} Bg4 {[%emt 0:00:28]} 22. Rd3 {[%emt 0:01:58]} f5 {[%emt 0:04:42] ...fxe4 is the strong threat.} 23. Qg1 {[%emt 0:10:41]} f4 {[%emt 0:02:21]} (23... Rfd8 $11) 24. N3a4 {[%emt 0:05:28]} (24. gxf4 $1 $14 Rxf4 25. Ne2 Bxe2 26. Rxe2) 24... f3 $36 {[%emt 0:04:02][%mdl 2048] Black is more active.} 25. Qf2 {[%emt 0:00:10]} Rbd8 {[%emt 0:01:37]} 26. Red1 {[%emt 0:05:57]} h5 {[%emt 0:01:06]} 27. h3 {[%emt 0:02:25]} ({Better is} 27. b3 $15) 27... Rxd3 {[%emt 0:03:25]} 28. Rxd3 {[%emt 0:00:08]} Bxh3 {[%emt 0:00:15]} 29. Rxf3 {[%emt 0:00:04]} Bg4 {[%emt 0:02:40] A strong pair of Bishops.} 30. Rxf8+ {[%emt 0:00:20]} Qxf8 {[%emt 0:00:02]} 31. Qe1 {[%emt 0:03:51]} Kh7 {[%emt 0:02:10]} (31... Qf3 $19 32. Nd3 Qg2) 32. Nd3 $17 {[%emt 0:00:33]} Bf6 {[%emt 0:03:05] Black is more active.} (32... Qd6 $15) 33. Qa5 {[%emt 0:01:32]} Qe7 {[%emt 0:00:28]} 34. Qa6 {[%emt 0:00:52]} Qd7 {[%emt 0:01:16] Strongly threatening ...Qd4.} 35. Nac5 {[%emt 0:00:21]} Qd4 {[%emt 0:00:41]} 36. Qxa7 {[%emt 0:03:18]} Qg1+ {[%emt 0:01:23]} 37. Ka2 {[%emt 0:00:03]} Qxg3 {[%emt 0:00:11]} 38. a4 $1 {[%emt 0:01:11] aiming for a5.} h4 {[%emt 0:01:11] White must now prevent ...h3.} 39. a5 $1 {[%emt 0:01:07] Hoping for Qf7.} h3 {[%emt 0:02:33]} 40. Qb7 $2 {[%emt 0:00:23][%mdl 8192]} (40. a6 $11 {and White stays safe.} h2 41. Qb8) 40... h2 $19 {[%emt 0:04:25]} 41. a6 {[%emt 0:30:03]} h1=Q {[%emt 0:03:46]} 42. a7 {[%emt 0:00:00]} Qgg2 {[%emt 0:15:52][%cal Og4e6] ( -> ...Be6+!)} 43. a8=Q {[%emt 0:00:00] [#]} Qxc2 {[%emt 0:00:14]} (43... Be6+ $142 $1 {[%mdl 512]} 44. Nxe6 Qxc2) 44. Qe8 $2 {[%emt 0:00:00]} (44. Qf7 $19 Qhb1+ 45. Ka3 Qa1+ 46. Qa2) 44... Qhb1+ {[%emt 0:05:49] Black mates.} 45. Ka3 {[%emt 0:00:00]} Qa1+ {[%emt 0:03:07]} 46. Kb4 {[%emt 0:00:00]} Qa2 {[%emt 0:00:27] Weighted Error Value: White=0.46/Black=0.15 (very precise)} 0-1

[Event "HSK IM Invitational 2022"]
[Site "Hamburg"]
[Date "2022.05.24"]
[Round "5.4"]
[White "Kotyk, Michael"]
[Black "Fischer, Daniel"]
[Result "0-1"]
[ECO "C54"]
[WhiteElo "2170"]
[BlackElo "2367"]
[Annotator "TA"]
[PlyCount "50"]
[EventDate "2022.05.20"]
[EventType "tourn"]
[EventCountry "GER"]
[SourceTitle "playchess.com"]
[Source "ChessBase"]
[SourceQuality "1"]
[TimeControl "40/5400+30:1800+30"]

{[%evp 12,50,16,16,11,0,8,2,0,0,14,0,0,0,0,0,0,0,0,-1,0,0,-7,-14,-21,-76,-72,-177,-177,-164,-148,-297,-308,-502,-509,-512,-493,-502,-502,-5498,-2635]} 1. e4 {[%emt 0:09:25]} e5 {[%emt 0:00:25]} 2. Nf3 {[%emt 0:03:07]} Nc6 {[%emt 0:00:22]} 3. Bc4 {[%emt 0:00:08]} Nf6 {[%emt 0:00:19]} 4. d3 {[%emt 0:00:06]} Bc5 {[%emt 0:00:51]} 5. c3 {[%emt 0:00:13]} d6 {[%emt 0:00:21]} 6. Nbd2 {[%emt 0:00:23]} O-O {[%emt 0:00:51]} 7. O-O {[%emt 0:00:10]} a5 {[%emt 0:00:19] C54: Giuoco Piano: 4 c3 Nf6, main lines with 5 d4 and 5 d3.} 8. a4 {[%emt 0:02:51]} h6 {[%emt 0:01:07]} 9. h3 {[%emt 0:00:42]} Be6 {[%emt 0:01:18] The position is equal.} 10. Re1 {[%emt 0:09:45]} Ba7 {[%emt 0:13:47]} 11. Qb3 {[%emt 0:11:17][%csl LRb7,LRe6]} Qd7 {[%emt 0:01:35][%cal Oe6h3]} 12. Bxe6 {[%emt 0:00:45]} ({But not} 12. Qxb7 $2 Bxc4 13. Nxc4 Rfb8 $19) 12... fxe6 {[%emt 0:00:14]} 13. Nf1 {[%emt 0:05:15]} Nh5 {[%emt 0:04:03][%cal Of8f3]} 14. Be3 {[%emt 0:00:37]} Nf4 {[%emt 0:06:01] [#]} 15. Qd1 $146 {[%emt 0:05:52]} ({Predecessor:} 15. Bxa7 Rxa7 16. Re3 Raa8 17. N1h2 Kh8 18. h4 b6 19. g3 Nh5 20. Qb5 Nf6 21. Rc1 {½-½ (62) Valsecchi,A (2500)-Sanal,V (2502) Batumi 2018}) 15... Qf7 {[%emt 0:18:25][%cal Of4h3] Threatening ...Nxh3+!} 16. Bxa7 {[%emt 0:04:49]} Rxa7 {[%emt 0:01:09]} 17. Re3 {[%emt 0:00:26]} (17. Kh2 {feels hotter.} Qh5 18. Re3 g5 19. Ng3) 17... d5 {[%emt 0:10:02] White must now prevent ...d4.} 18. exd5 {[%emt 0:06:44]} (18. N3d2 $11) 18... exd5 $17 {[%emt 0:01:45]} 19. Nxe5 {[%emt 0:00:43]} (19. N1d2 $17) 19... Nxe5 $19 {[%emt 0:00:05]} 20. Rxe5 {[%emt 0:00:10] [#]} Ra6 $1 $40 {[%emt 0:00:35][%cal Of4h3][%mdl 128] ...Nxh3+! is the strong threat. White is in trouble.} 21. Re3 {[%emt 0:05:00] Loses the game.} (21. Qf3 $17 Rf6 22. Ree1) 21... Nxg2 {[%emt 0:03:47][%mdl 64] Discovered Attack} 22. Rg3 $2 {[%emt 0:05:47]} (22. Kxg2 Rg6+ 23. Rg3 Qxf2+ 24. Kh1 Rxg3 25. Nxg3 Qxg3 26. Qg4 Qxd3 27. Rg1) 22... Qxf2+ {[%emt 0:02:28] Black is clearly winning.} 23. Kh1 {[%emt 0:00:04] Hoping for Qg4.} Nf4 {[%emt 0:05:11] And now ...Ne2 would win.} 24. Qe1 {[%emt 0:01:42]} Qxb2 {[%emt 0:03:29] [#] Strongly threatening ...Re6.} 25. Qe7 {[%emt 0:09:16]} (25. Rb1 $142 Qe2 26. Qxe2 Nxe2 27. Rg2 Nxc3 28. Rc1) 25... Nh5 {[%emt 0:03:23] Weighted Error Value: White=0.73/Black=0.01 (flawless)} 0-1

[Event "HSK IM Invitational 2022"]
[Site "Hamburg"]
[Date "2022.05.24"]
[Round "5.5"]
[White "Kopylov, Daniel"]
[Black "Miezis, Normunds"]
[Result "1/2-1/2"]
[ECO "C10"]
[WhiteElo "2292"]
[BlackElo "2452"]
[Annotator "TA"]
[PlyCount "40"]
[EventDate "2022.05.20"]
[EventType "tourn"]
[EventCountry "GER"]
[SourceTitle "playchess.com"]
[Source "ChessBase"]
[SourceQuality "1"]
[TimeControl "40/5400+30:1800+30"]

{[%evp 17,40,35,38,46,41,27,35,35,41,0,0,18,41,0,0,8,10,0,0,0,0,0,0,0,10]} 1. e4 {[%emt 0:00:03]} e6 {[%emt 0:14:11]} 2. d4 {[%emt 0:01:07]} d5 {[%emt 0:00:09]} 3. Nc3 {[%emt 0:00:16]} dxe4 {[%emt 0:00:18]} 4. Nxe4 {[%emt 0:00:15]} Nd7 {[%emt 0:00:07]} 5. Nf3 {[%emt 0:00:08]} Ngf6 {[%emt 0:00:09]} 6. Nxf6+ {[%emt 0:00:29]} Nxf6 {[%emt 0:02:40]} 7. Be3 {[%emt 0:03:43]} Be7 {[%emt 1:16:26]} 8. Bd3 O-O 9. Qe2 b6 10. O-O-O {C10: French with 3 Nc3: Unusual Black 3rd moves and 3...dxe4.} Bb7 {[%emt 0:00:00]} 11. Kb1 {[%emt 1:29:59]} (11. Ne5 {looks sharper.} Nd5 12. Bd2 c5 13. dxc5 Bxc5 14. Kb1) 11... c5 {[%emt 0:00:00]} 12. dxc5 {[%emt 0:00:00][%cal Od3h7] White is slightly better.} Qc7 {[%emt 0:00:00] [#]} 13. c6 $146 {[%emt 0:00:00]} ({Predecessor:} 13. cxb6 axb6 14. Bd4 Bd5 15. c4 Bxf3 16. gxf3 Rfd8 17. Bc3 b5 18. cxb5 Nd5 19. Be5 {1-0 (33) Frolyanov,D (2534)-Yandemirov,V (2387) Kazan 2017}) 13... Bxc6 {[%emt 0:00:00]} 14. Bd4 {[%emt 0:00:00]} Rad8 {[%emt 0:00:00] [#] ...Bxf3 is the strong threat.} (14... Bd5 {keeps more tension.} 15. c3 Rad8 16. Rhe1 Nd7) 15. c3 {[%emt 0:00:00]} Qb7 {[%emt 0:00:00] The position is equal.} 16. Rhe1 {[%emt 0:00:00]} b5 {[%emt 0:00:00]} 17. Ne5 {[%emt 0:00:00]} b4 {[%emt 0:00:00]} 18. Nxc6 {[%emt 0:00:00]} Qxc6 {[%emt 0:00:00]} 19. g4 {[%emt 0:00:00]} bxc3 {[%emt 0:00:00]} 20. Bxc3 {[%emt 0:00:00] A strong pair of Bishops.} Qa4 {[%emt 0:00:00] Weighted Error Value: White=0.09 (flawless) /Black=0.03 (flawless)} 1/2-1/2

[Event "HSK IM Invitational 2022"]
[Site "Hamburg"]
[Date "2022.05.24"]
[Round "6.1"]
[White "Clarke, Brandon G I"]
[Black "Miezis, Normunds"]
[Result "1/2-1/2"]
[ECO "B42"]
[WhiteElo "2445"]
[BlackElo "2452"]
[Annotator "TA"]
[PlyCount "29"]
[EventDate "2022.05.20"]
[EventType "tourn"]
[EventCountry "GER"]
[SourceTitle "playchess.com"]
[Source "ChessBase"]
[SourceQuality "1"]
[TimeControl "40/5400+30:1800+30"]

{[%evp 11,29,27,39,35,38,37,44,40,43,33,57,45,61,52,86,26,27,25,31,37]} 1. e4 {[%emt 0:01:53]} c5 {[%emt 0:08:29]} 2. Nf3 {[%emt 0:00:10]} e6 {[%emt 0:00:09]} 3. d4 {[%emt 0:00:05]} cxd4 {[%emt 0:00:04]} 4. Nxd4 {[%emt 0:00:06]} a6 {[%emt 0:00:10]} 5. Bd3 {[%emt 0:00:32]} Nc6 {[%emt 0:01:20]} 6. Nxc6 {[%emt 0:00:26]} dxc6 {[%emt 0:00:10]} 7. Bf4 {[%emt 0:01:11] B42: Sicilian: Kan Variation: 5 Bd3.} Ne7 {[%emt 0:14:58]} 8. Be3 {[%emt 0:00:12]} e5 {[%emt 0:00:34]} 9. Nd2 {[%emt 0:00:18]} Ng6 {[%emt 0:01:56]} 10. g3 {[%emt 0:01:06] [#]} b5 $146 {[%emt 0:03:29]} ({Predecessor:} 10... Be7 11. a4 Be6 12. h4 h6 13. Bc4 Qd6 14. c3 Bxc4 15. Nxc4 Qe6 16. Qb3 O-O {½-½ (60) Hovhannisyan,R (2626)-Quparadze,G (2476) Reykjavik 2021}) 11. h4 {[%emt 0:00:32]} Bd6 {[%emt 0:03:18]} 12. a4 {[%emt 0:00:30][%cal Ba2a4,Ba4b5][%mdl 32] [#] Threatens to win with axb5.} Be6 {[%emt 0:03:08]} 13. O-O {[%emt 0:01:45]} ({White should play} 13. h5 $16 Nf8 14. h6) 13... O-O $11 {[%emt 0:02:36][%cal Og6f4]} 14. Qe2 {[%emt 0:06:16]} Re8 {[%emt 0:10:31][%cal Og6f4]} 15. axb5 {[%emt 0:12:04] Weighted Error Value: White=0.10 (very precise) /Black=0.06 (flawless)} 1/2-1/2

[Event "HSK IM Invitational 2022"]
[Site "Hamburg"]
[Date "2022.05.24"]
[Round "6.2"]
[White "Fischer, Daniel"]
[Black "Kopylov, Daniel"]
[Result "1-0"]
[ECO "B45"]
[WhiteElo "2367"]
[BlackElo "2292"]
[Annotator "TA"]
[PlyCount "63"]
[EventDate "2022.05.20"]
[EventType "tourn"]
[EventCountry "GER"]
[SourceTitle "playchess.com"]
[Source "ChessBase"]
[SourceQuality "1"]
[TimeControl "40/5400+30:1800+30"]

{[%evp 17,63,14,14,4,75,47,61,51,54,60,66,54,64,31,32,29,36,33,54,39,32,41,25,31,36,20,67,37,134,132,146,147,185,188,198,96,515,541,493,510,709,708,720,672,1593,1375,2379,2209]} 1. e4 {[%emt 0:00:03]} c5 {[%emt 0:00:09]} 2. Nf3 {[%emt 0:00:04]} Nc6 {[%emt 0:00:16]} 3. d4 {[%emt 0:00:05]} cxd4 {[%emt 0:00:12]} 4. Nxd4 {[%emt 0:00:05]} Nf6 {[%emt 0:00:09]} 5. Nc3 {[%emt 0:00:05]} e6 {[%emt 0:00:14]} 6. Nxc6 {[%emt 0:01:47]} bxc6 {[%emt 0:00:28]} 7. e5 {[%emt 0:00:11]} Nd5 {[%emt 0:00:10]} 8. Ne4 {[%emt 0:00:16]} Qc7 {[%emt 0:00:13]} 9. f4 {[%emt 0:00:22]} Qb6 {[%emt 0:00:11]} 10. a3 {[%emt 0:00:28] Against Qb4+. B45: Sicilian Four Knights.} Ba6 {[%emt 0:13:09]} (10... Ne3 $11 11. Qd3 Nxf1 12. Rxf1 Ba6) 11. Bxa6 {[%emt 0:02:26]} Qxa6 {[%emt 0:00:29]} 12. b3 {[%emt 0:01:08] [#] White is slightly better.} Qb6 $146 {[%emt 0:29:22]} ({Predecessor:} 12... f5 13. exf6 Nxf6 14. Nxf6+ gxf6 15. Qh5+ Kd8 16. Bb2 Be7 17. O-O-O Kc7 18. a4 Rae8 {1-0 (39) Karthikeyan,M (2622)-Harika,D (2517) chess24.com INT 2022}) 13. Qd3 {[%emt 0:19:36]} f5 {[%emt 0:02:17]} 14. exf6 {[%emt 0:02:32]} gxf6 {[%emt 0:07:15]} 15. c4 {[%emt 0:11:56]} (15. Bb2 $5 {[%cal Re4f6]} Be7 16. O-O-O $14) 15... f5 {[%emt 0:01:29]} 16. Ng5 {[%emt 0:01:04]} Bg7 {[%emt 0:04:27]} 17. Ra2 {[%emt 0:06:41]} Nc3 {[%emt 0:05:56]} 18. Rc2 {[%emt 0:08:03] [#] aiming for Bb2.} h6 {[%emt 0:02:52]} 19. Nf3 {[%emt 0:03:46] Strongly threatening Bb2.} Ne4 {[%emt 0:01:48]} (19... Qxb3 $2 20. Ne5 (20. Bb2 Rb8 $14) 20... d6 21. Rxc3 $18) 20. Be3 {[%emt 0:01:58]} Qc7 {[%emt 0:06:10]} 21. O-O $40 {[%emt 0:02:08][%mdl 128] White attacks.} c5 {[%emt 0:03:34]} (21... Qd6 $11 22. Qxd6 Nxd6) 22. Nd2 {[%emt 0:01:56]} Qc6 {[%emt 0:04:03]} (22... Nf6 $1 $14) 23. b4 $16 {[%emt 0:01:57]} cxb4 {[%emt 0:09:04]} 24. axb4 {[%emt 0:00:06][%cal Ba3b4,Bb4b5,Bb5b6,Bb6b7][%mdl 32]} d5 {[%emt 0:00:26][%cal Od5d4]} 25. b5 {[%emt 0:12:59]} dxc4 {[%emt 0:01:14]} 26. Nxc4 {[%emt 0:00:17]} ({Not} 26. bxc6 cxd3 27. Rc4 Nxd2 28. Bxd2 O-O-O $11) (26. Qxe4 $18 {and White stays clearly on top.} Qxe4 27. Nxe4 fxe4 28. Rxc4) 26... Qd7 {[%emt 0:05:16][%mdl 8192] This costs Black the game.} (26... Qd5 $16 {is a better chance.} 27. Qxd5 exd5) 27. Qxd7+ $18 {[%emt 0:08:23] White is clearly winning.} Kxd7 {[%emt 0:00:01]} 28. b6 {[%emt 0:00:24]} Ke7 {[%emt 0:03:04]} 29. b7 {[%emt 0:03:35]} Rad8 {[%emt 0:00:27]} 30. Na5 {[%emt 0:01:03] [#] Hoping for Nc6+.} Nd6 {[%emt 0:00:33]} 31. Rc7+ {[%emt 0:01:12]} Kf8 {[%emt 0:00:30]} 32. Bc5 {[%emt 0:00:34] Weighted Error Value: White=0.11 (very precise) /Black=0.64} 1-0

[Event "HSK IM Invitational 2022"]
[Site "Hamburg"]
[Date "2022.05.24"]
[Round "6.3"]
[White "Hommer, Jeremy"]
[Black "Kotyk, Michael"]
[Result "0-1"]
[ECO "D02"]
[WhiteElo "2152"]
[BlackElo "2170"]
[Annotator "TA"]
[PlyCount "88"]
[EventDate "2022.05.20"]
[EventType "tourn"]
[EventCountry "GER"]
[SourceTitle "playchess.com"]
[Source "ChessBase"]
[SourceQuality "1"]
[TimeControl "40/5400+30:1800+30"]

{[%evp 9,88,0,75,-10,0,-6,-4,-14,-9,-20,-16,-26,-18,-52,-44,-76,-13,-40,-26,-43,-15,-11,-13,-13,-20,-19,-17,-125,-119,-128,-117,-106,-105,-137,-141,-167,-158,-161,-143,-143,-143,-158,-159,-165,-160,-166,-158,-160,-137,-547,-511,-477,-480,-438,-377,-536,-769,-762,-765,-710,-683,-942,-908,-706,-698,-835,-715,-840,-906,-984,-905,-1642,-1545,-1579,-1564,-1370,-1188,-1059,0,-810,-786]} 1. d4 {[%emt 0:00:23]} d5 {[%emt 0:00:07]} 2. Bf4 {[%emt 0:00:06]} Nf6 {[%emt 0:00:04]} 3. e3 {[%emt 0:00:11]} e6 {[%emt 0:00:05]} 4. Nf3 {[%emt 0:00:13]} Bd6 {[%emt 0:00:05]} 5. Ne5 {[%emt 0:00:07]} c5 {[%emt 0:00:24]} (5... O-O $11 {remains equal.}) 6. c3 {[%emt 0:00:06] D02: 1 d4 d5 2 Nf3 sidelines, including 2...Nf6 3 g3 and 2...Nf6 3 Bf4.} (6. Bb5+ $16 Ke7 7. dxc5 Bxc5 8. Nd2 (8. Nc3 a6 $11)) 6... Qc7 {[%emt 0:00:13]} 7. Nd2 {[%emt 0:00:07]} Nbd7 {[%emt 0:02:28][%cal Rd7e5]} 8. Ndf3 {[%emt 0:01:45] The position is equal.} c4 {[%emt 0:00:30] [#]} 9. h4 $146 {[%emt 0:08:23]} ({Predecessor:} 9. Nxd7 Bxd7 10. Bxd6 Qxd6 11. Ne5 b5 12. a4 bxa4 13. Nxd7 Qxd7 14. Qxa4 Qxa4 15. Rxa4 {½-½ (15) Bodi,T (2208)-Gacso,T (2210) Heves 1999}) 9... b5 {[%emt 0:01:35]} 10. a3 {[%emt 0:03:51]} a5 {[%emt 0:00:21]} 11. g4 {[%emt 0:07:25]} Ne4 {[%emt 0:03:02]} 12. Nxd7 {[%emt 0:22:31]} Bxd7 {[%emt 0:02:52]} ({Reject} 12... Qxd7 13. Ne5 Qe7 14. g5 $11) ({Much weaker is} 12... Kxd7 $6 13. Bxd6 Kxd6 14. Nd2 $11) ({Better is} 12... Bxf4 $17 13. Nde5 Bxe5 14. Nxe5 f6) 13. Bxd6 {[%emt 0:01:08]} Qxd6 {[%emt 0:00:07]} 14. Nd2 {[%emt 0:02:18]} f5 {[%emt 0:02:44]} 15. gxf5 {[%emt 0:04:58]} exf5 {[%emt 0:00:20]} 16. Nxe4 {[%emt 0:00:28]} fxe4 {[%emt 0:00:56]} 17. Qh5+ {[%emt 0:11:10]} g6 {[%emt 0:01:45]} 18. Qe5+ {[%emt 0:01:12] White is on the road to losing.} (18. Qh6 $11) 18... Qxe5 $17 {[%emt 0:00:08]} 19. dxe5 {[%emt 0:00:04]} O-O {[%emt 0:10:15]} 20. Rd1 {[%emt 0:01:11]} Be6 {[%emt 0:00:25][%cal Ob5b4] Black is more active.} 21. Bh3 {[%emt 0:00:18]} Kf7 {[%emt 0:01:18]} 22. Bg2 {[%emt 0:02:10]} Ke7 {[%emt 0:00:35]} 23. O-O {[%emt 0:08:05]} Rf5 {[%emt 0:00:31]} 24. f4 {[%emt 0:03:02]} exf3 $1 {[%emt 0:00:30]} 25. Rxf3 {[%emt 0:00:54]} Rxe5 {[%emt 0:00:10]} 26. Rd4 {[%emt 0:00:14] Prevents Bg4.} Bf5 {[%emt 0:03:49]} 27. Rg3 {[%emt 0:04:09]} Ke6 {[%emt 0:00:31]} 28. Kf2 {[%emt 0:05:51]} Rb8 {[%emt 0:02:10]} 29. Bxd5+ $2 {[%emt 0:03:31][%mdl 8192]} (29. h5 $17) 29... Rxd5 $19 {[%emt 0:00:42]} 30. e4 {[%emt 0:00:05]} Rxd4 {[%emt 0:00:56]} 31. exf5+ {[%emt 0:00:06]} Kxf5 {[%emt 0:00:06]} 32. Rg5+ {[%emt 0:00:54]} (32. cxd4 $142 Ke4 33. Ke2) 32... Ke4 {[%emt 0:00:37]} 33. cxd4 {[%emt 0:02:06]} Kxd4 {[%emt 0:02:12][%mdl 4096] Endgame KR-KR} 34. Ke2 {[%emt 0:00:10]} Re8+ {[%emt 0:00:16]} 35. Kd2 {[%emt 0:00:05]} Re5 {[%emt 0:00:07] [#] ( -> ...Rxg5)} 36. Rg4+ {[%emt 0:00:16]} Kc5 {[%emt 0:00:06]} 37. Rf4 {[%emt 0:01:10]} Rf5 {[%emt 0:00:06] Inhibits Rf8.} 38. Re4 {[%emt 0:00:18]} b4 {[%emt 0:01:07]} 39. axb4+ {[%emt 0:01:41]} axb4 {[%emt 0:00:01] [#] aiming for ...Rf2+.} 40. Re7 {[%emt 0:00:20]} Rf2+ {[%emt 0:01:56]} 41. Kc1 {[%emt 0:30:07]} h5 {[%emt 0:30:39] Threatens to win with ...b3.} 42. Rc7+ {[%emt 0:00:25]} Kd4 {[%emt 0:01:50] Hoping for ...b3.} 43. Rd7+ {[%emt 0:00:19]} Kc5 {[%emt 0:01:07] And now ...b3 would win.} 44. Rc7+ $1 {[%emt 0:00:07]} Kb5 {[%emt 0:00:05] Weighted Error Value: White=0.62/Black=0.14 (very precise)} 0-1

[Event "HSK IM Invitational 2022"]
[Site "Hamburg"]
[Date "2022.05.24"]
[Round "6.4"]
[White "Bracker, Arne"]
[Black "Schulze, Lara"]
[Result "1/2-1/2"]
[ECO "B68"]
[WhiteElo "2276"]
[BlackElo "2303"]
[Annotator "TA"]
[PlyCount "53"]
[EventDate "2022.05.20"]
[EventType "tourn"]
[EventCountry "GER"]
[SourceTitle "playchess.com"]
[Source "ChessBase"]
[SourceQuality "1"]
[TimeControl "40/5400+30:1800+30"]

{[%evp 19,53,35,42,18,18,0,18,12,7,0,85,89,68,70,73,67,150,166,157,157,128,97,74,77,188,177,341,96,110,-108,0,-17,-16,-18,-2,-26]} 1. e4 {[%emt 0:00:08]} c5 {[%emt 0:00:06]} 2. Nf3 {[%emt 0:00:13]} Nc6 {[%emt 0:00:06]} 3. d4 {[%emt 0:01:37]} cxd4 {[%emt 0:00:09]} 4. Nxd4 {[%emt 0:00:03]} Nf6 {[%emt 0:00:07]} 5. Nc3 {[%emt 0:00:06]} d6 {[%emt 0:00:06]} 6. Bg5 {[%emt 0:00:18]} e6 {[%emt 0:00:07]} 7. Qd2 {[%emt 0:00:11]} a6 {[%emt 0:00:10]} 8. O-O-O {[%emt 0:00:16]} Bd7 {[%emt 0:00:06]} 9. f4 {[%emt 0:00:21][%cal Bf2f4,Bf4e5][%mdl 32]} Be7 {[%emt 0:00:23]} 10. Nf3 {[%emt 0:00:32]} b5 {[%emt 0:00:14]} 11. a3 {[%emt 0:00:22] B68: Sicilian: Richter-Rauzer: 7...a6 8 0-0-0 Bd7 9 f4 Be7 .} Qa5 {[%emt 0:09:18]} 12. Kb1 {[%emt 0:01:09]} Rd8 {[%emt 0:00:58] [#]} 13. e5 $146 {[%emt 0:00:46]} ({Predecessor:} 13. Qe1 Rb8 14. e5 dxe5 15. Nxe5 b4 16. Nxc6 Bxc6 17. Na2 Bd5 18. Nxb4 Bxb4 19. axb4 Qa2+ 20. Kc1 Ne4 21. c4 O-O 22. Be7 Rfc8 23. c5 Nxc5 {0-1 (23) Diaz Rosas,J (2393)-Santos Latasa,J (2640) Mexico City 2022}) 13... dxe5 {[%emt 0:05:38]} 14. fxe5 {[%emt 0:04:13]} Bc8 {[%emt 0:02:21]} 15. Bd3 $16 {[%emt 0:08:34]} Nd5 {[%emt 0:02:13]} 16. Nxd5 {[%emt 0:05:39]} Rxd5 {[%emt 0:02:57]} 17. Qf4 $36 {[%emt 0:15:06][%mdl 2048] Strongly threatening Bxe7. White is more active.} (17. Qf2 $5 {[%cal Rg5e7]} Qc7 18. Bxe7 Nxe7 19. Ng5 $14) 17... Qc7 {[%emt 0:13:46]} (17... h6 $1 $14 18. Bxe7 Nxe7) 18. Be4 {[%emt 0:22:34]} Rxd1+ {[%emt 0:04:09]} 19. Rxd1 {[%emt 0:00:03] aiming for Bxc6+.} Bb7 {[%emt 0:11:06]} 20. Bxe7 {[%emt 0:20:27]} Nxe7 {[%emt 0:04:56]} 21. Ng5 $1 {[%emt 0:03:54][%csl Gg5,LRf7,LRh7][%cal Rf4f7] White is much more active.} ({Reject} 21. Bxb7 Qxb7 22. Qd2 Nd5 $11) 21... Nd5 {[%emt 0:21:24]} (21... Ng6 $16 22. Bxg6 hxg6) 22. Qg3 $1 $18 {[%emt 0:00:40] Threatens to win with Rf1.} Qc4 {[%emt 0:05:00]} (22... Nb6 {was called for.}) 23. Qh4 $2 {[%emt 0:13:28]} ({Weaker is} 23. Bxh7 Qf4 $16) (23. Qf2 $18 {is more deadly.} Qc7 24. Rf1) 23... h6 $16 {[%emt 0:02:23] [#]} 24. b3 $2 {[%emt 0:00:54] [#]} (24. Qh5 $1 $16 {[%cal Rh5f7] is necessary to keep the advantage.} Rf8 25. Nxe6 Qxe4 26. Nc5 (26. Nxg7+ Kd7 $17)) 24... Qe2 {[%emt 0:02:05]} (24... Qc7 $1 $17 {And now ...Nc3+ would win.} 25. Bxd5 Bxd5) 25. Re1 {[%emt 0:00:13] The position is equal.} Qd2 {[%emt 0:00:28]} 26. Nf3 {[%emt 0:00:12]} Qa5 {[%emt 0:00:56]} 27. Bxd5 {[%emt 0:00:34] Weighted Error Value: White=0.47/Black=0.33} 1/2-1/2